{"text_format":"3","workbook":"xlsx","n_sheets":1,"sheets":["INVENTARIO DELLE ATTREZZATURE"],"not_rendered":{"defined_names":5},"read":"whole","date_system":"1900"}

{"sheet":"INVENTARIO DELLE ATTREZZATURE","index":0,"n_rows":9,"n_cols":19,"rows_kept":9,"merged":[[0,1,0,5],[0,6,0,9],[0,10,0,12],[0,13,0,14],[2,1,2,6],[2,7,2,18]]}
[null,"INVENTARIO DELLE ATTREZZATURE"]
[]
[null,"CONDIZIONI FISICHE",{"$nulls":5},"SITUAZIONE FINANZIARIA"]
[null,"Numero cespite o di serie","Descrizione \n(marca e modello)","Luogo","Condizione","Fornitore","Anni di servizio rimanenti ","Valore iniziale","Acconto","Data di acquisto o noleggio","Durata del prestito in anni","Tasso del prestito","Rata mensile","Costi di gestione mensili","Costo mensile \ntotale","Valore previsto alla fine del prestito","Ammortamento lineare annuo","Ammortamento lineare mensile","Valore corrente"]
[null,123,"Marca e modello","Filiale principale","Buona","locale",5,{"v":30000,"d":"€ 30,000.00"},{"v":5000,"d":"€ 5,000.00"},{"$f":"DATE(YEAR(TODAY())-2, 1,1)","v":"2016-01-01"},4,{"v":0.1,"d":"10.00%"},{"$f":"IFERROR(IF(AND(Dati[[#This Row],[Valore iniziale]]>0,Dati[[#This Row],[Valore iniziale]]<>Dati[[#This Row],[Acconto]]),-1*PMT(Dati[[#This Row],[Tasso del prestito]]/12,Dati[[#This Row],[Durata del prestito in anni]]*12,Dati[[#This Row],[Valore iniziale]]-Dati[[#This Row],[Acconto]]),0),0)","v":{"v":634.0645858686797,"d":"€ 634.06"}},{"v":200,"d":"€ 200.00"},{"$f":"IFERROR(Dati[[#This Row],[Costi di gestione mensili]]+Dati[[#This Row],[Rata mensile]],\"\")","v":{"v":834.0645858686797,"d":"€ 834.06"}},{"v":20000,"d":"€ 20,000.00"},{"$f":"IFERROR(IF(Dati[[#This Row],[Valore iniziale]]>0,SLN(Dati[[#This Row],[Valore iniziale]],Dati[[#This Row],[Valore previsto alla fine del prestito]],Dati[[#This Row],[Anni di servizio rimanenti ]]),0),0)","v":{"v":2000,"d":"€ 2,000.00"}},{"$f":"IFERROR(Dati[[#This Row],[Ammortamento lineare annuo]]/12,0)","v":{"v":166.66666666666666,"d":"€ 166.67"}},{"$f":"IFERROR(Dati[[#This Row],[Valore iniziale]]-(Dati[[#This Row],[Ammortamento lineare annuo]]*((TODAY()-Dati[[#This Row],[Data di acquisto o noleggio]])/365)),0)","v":{"v":24876.712328767124,"d":"€ 24,876.71"}}]
[null,456,"Marca e modello","Filiale principale","Eccellente","locale",3,{"v":5000,"d":"€ 5,000.00"},{"v":5000,"d":"€ 5,000.00"},{"$f":"DATE(YEAR(TODAY())-1, 1,1)","v":"2017-01-01"},null,null,{"$f":"IFERROR(IF(AND(Dati[[#This Row],[Valore iniziale]]>0,Dati[[#This Row],[Valore iniziale]]<>Dati[[#This Row],[Acconto]]),-1*PMT(Dati[[#This Row],[Tasso del prestito]]/12,Dati[[#This Row],[Durata del prestito in anni]]*12,Dati[[#This Row],[Valore iniziale]]-Dati[[#This Row],[Acconto]]),0),0)","v":{"v":0,"d":"€ 0.00"}},{"v":20,"d":"€ 20.00"},{"$f":"IFERROR(Dati[[#This Row],[Costi di gestione mensili]]+Dati[[#This Row],[Rata mensile]],\"\")","v":{"v":20,"d":"€ 20.00"}},null,{"$f":"IFERROR(IF(Dati[[#This Row],[Valore iniziale]]>0,SLN(Dati[[#This Row],[Valore iniziale]],Dati[[#This Row],[Valore previsto alla fine del prestito]],Dati[[#This Row],[Anni di servizio rimanenti ]]),0),0)","v":{"v":1666.6666666666667,"d":"€ 1,666.67"}},{"$f":"IFERROR(Dati[[#This Row],[Ammortamento lineare annuo]]/12,0)","v":{"v":138.88888888888889,"d":"€ 138.89"}},{"$f":"IFERROR(Dati[[#This Row],[Valore iniziale]]-(Dati[[#This Row],[Ammortamento lineare annuo]]*((TODAY()-Dati[[#This Row],[Data di acquisto o noleggio]])/365)),0)","v":{"v":2401.8264840182646,"d":"€ 2,401.83"}}]
[null,789,"Marca e modello","Lazio","Discreta","locale",6,{"v":50000,"d":"€ 50,000.00"},{"v":20000,"d":"€ 20,000.00"},{"$f":"TODAY()","v":"2018-07-24"},5,{"v":0.05,"d":"5.00%"},{"$f":"IFERROR(IF(AND(Dati[[#This Row],[Valore iniziale]]>0,Dati[[#This Row],[Valore iniziale]]<>Dati[[#This Row],[Acconto]]),-1*PMT(Dati[[#This Row],[Tasso del prestito]]/12,Dati[[#This Row],[Durata del prestito in anni]]*12,Dati[[#This Row],[Valore iniziale]]-Dati[[#This Row],[Acconto]]),0),0)","v":{"v":566.137009320328,"d":"€ 566.14"}},{"v":40,"d":"€ 40.00"},{"$f":"IFERROR(Dati[[#This Row],[Costi di gestione mensili]]+Dati[[#This Row],[Rata mensile]],\"\")","v":{"v":606.137009320328,"d":"€ 606.14"}},{"v":1500,"d":"€ 1,500.00"},{"$f":"IFERROR(IF(Dati[[#This Row],[Valore iniziale]]>0,SLN(Dati[[#This Row],[Valore iniziale]],Dati[[#This Row],[Valore previsto alla fine del prestito]],Dati[[#This Row],[Anni di servizio rimanenti ]]),0),0)","v":{"v":8083.333333333333,"d":"€ 8,083.33"}},{"$f":"IFERROR(Dati[[#This Row],[Ammortamento lineare annuo]]/12,0)","v":{"v":673.6111111111111,"d":"€ 673.61"}},{"$f":"IFERROR(Dati[[#This Row],[Valore iniziale]]-(Dati[[#This Row],[Ammortamento lineare annuo]]*((TODAY()-Dati[[#This Row],[Data di acquisto o noleggio]])/365)),0)","v":{"v":50000,"d":"€ 50,000.00"}}]
[{"$nulls":12},{"$f":"IFERROR(IF(AND(Dati[[#This Row],[Valore iniziale]]>0,Dati[[#This Row],[Valore iniziale]]<>Dati[[#This Row],[Acconto]]),-1*PMT(Dati[[#This Row],[Tasso del prestito]]/12,Dati[[#This Row],[Durata del prestito in anni]]*12,Dati[[#This Row],[Valore iniziale]]-Dati[[#This Row],[Acconto]]),0),0)","v":{"v":0,"d":"€ 0.00"}},null,{"$f":"IFERROR(Dati[[#This Row],[Costi di gestione mensili]]+Dati[[#This Row],[Rata mensile]],\"\")","v":{"v":0,"d":"€ 0.00"}},null,{"$f":"IFERROR(IF(Dati[[#This Row],[Valore iniziale]]>0,SLN(Dati[[#This Row],[Valore iniziale]],Dati[[#This Row],[Valore previsto alla fine del prestito]],Dati[[#This Row],[Anni di servizio rimanenti ]]),0),0)","v":{"v":0,"d":"€ 0.00"}},{"$f":"IFERROR(Dati[[#This Row],[Ammortamento lineare annuo]]/12,0)","v":{"v":0,"d":"€ 0.00"}},{"$f":"IFERROR(Dati[[#This Row],[Valore iniziale]]-(Dati[[#This Row],[Ammortamento lineare annuo]]*((TODAY()-Dati[[#This Row],[Data di acquisto o noleggio]])/365)),0)","v":{"v":0,"d":"€ 0.00"}}]
[{"$nulls":12},{"$f":"IFERROR(IF(AND(Dati[[#This Row],[Valore iniziale]]>0,Dati[[#This Row],[Valore iniziale]]<>Dati[[#This Row],[Acconto]]),-1*PMT(Dati[[#This Row],[Tasso del prestito]]/12,Dati[[#This Row],[Durata del prestito in anni]]*12,Dati[[#This Row],[Valore iniziale]]-Dati[[#This Row],[Acconto]]),0),0)","v":{"v":0,"d":"€ 0.00"}},null,{"$f":"IFERROR(Dati[[#This Row],[Costi di gestione mensili]]+Dati[[#This Row],[Rata mensile]],\"\")","v":{"v":0,"d":"€ 0.00"}},null,{"$f":"IFERROR(IF(Dati[[#This Row],[Valore iniziale]]>0,SLN(Dati[[#This Row],[Valore iniziale]],Dati[[#This Row],[Valore previsto alla fine del prestito]],Dati[[#This Row],[Anni di servizio rimanenti ]]),0),0)","v":{"v":0,"d":"€ 0.00"}},{"$f":"IFERROR(Dati[[#This Row],[Ammortamento lineare annuo]]/12,0)","v":{"v":0,"d":"€ 0.00"}},{"$f":"IFERROR(Dati[[#This Row],[Valore iniziale]]-(Dati[[#This Row],[Ammortamento lineare annuo]]*((TODAY()-Dati[[#This Row],[Data di acquisto o noleggio]])/365)),0)","v":{"v":0,"d":"€ 0.00"}}]